fUSD/lending_fUSD_20240617
["ID","MTS","AMOUNT","RATE_DAILY","PERIOD"]
[329761601,1718652668167,-500.0,0.00022465,3]
[329761602,1718652668176,-11792.81,0.00022465,3]
[329761603,1718652668185,-500.0,0.00022465,3]
[329761604,1718652668195,-151.0,0.00022465,7]
[329761605,1718652668205,-500.0,0.00022465,3]
[329761606,1718652668214,-151.0,0.00022465,7]
[329761607,1718652668224,-948.84,0.00022465,3]
[329761608,1718652668233,-500.0,0.00022465,3]
[329761609,1718652668246,-625.4,0.00022465,3]
[329761610,1718652668255,-500.0,0.00022465,3]
[329761611,1718652668264,-1436.93,0.00022465,3]
[329761612,1718652668274,-535.82278096,0.00022465,3]
[329761613,1718652668283,-500.0,0.00022465,3]
[329761614,1718652668293,-896.77,0.00022465,3]
[329761615,1718652668303,-500.0,0.00022465,3]
[329761616,1718652668312,-8144.54,0.00022465,3]
[329761617,1718652668321,-5573.5,0.00022465,3]
[329761618,1718652668331,-568.31,0.00022465,3]
[329761619,1718652668340,-5300.86,0.00022465,3]
[329761620,1718652668351,-18257.99,0.00022465,3]
[329761621,1718652668360,-1287.3,0.00022465,3]
[329761622,1718652668370,-500.0,0.00022465,3]
[329761623,1718652668379,-500.0,0.00022465,3]
[329761624,1718652668389,-593.72,0.00022465,3]
[329761625,1718652668399,-11268.82,0.00022465,3]
[329761626,1718652668409,-672.25,0.00022465,3]
[329761627,1718652668418,-1121.85,0.00022465,3]
[329761628,1718652668427,-596.43,0.00022465,3]
[329761629,1718652668437,-2558.37,0.00022465,3]
[329761630,1718652668446,-58402.97,0.00022465,3]
[329761631,1718652668456,-932.64,0.00022465,3]
[329761632,1718652668465,-25819.81,0.00022465,3]
[329761633,1718652668475,-3016.45,0.00022465,3]
[329761634,1718652668485,-500.0,0.00022465,3]
[329761635,1718652668496,-6238.81,0.00022465,3]
[329761636,1718652668505,-500.0,0.00022465,3]
[329761637,1718652668515,-500.0,0.00022465,3]
[329761638,1718652668524,-605.0,0.00022465,3]
[329761639,1718652668534,-526.97,0.00022465,3]
[329761640,1718652668543,-1288.32,0.00022465,3]
[329761641,1718652668553,-3323.86,0.00022465,3]
[329761642,1718652668563,-588.00841271,0.00022465,3]
[329761643,1718652668572,-765.06,0.00022465,3]
[329761644,1718652668582,-1167.74,0.00022465,3]
[329761645,1718652668591,-3413.96,0.00022465,3]
[329761646,1718652668601,-910.13,0.00022465,3]
[329761647,1718652668610,-4538.39,0.00022465,3]
[329761648,1718652668619,-587.91277345,0.00022465,3]
[329761649,1718652668629,-500.0,0.00022465,3]
[329761650,1718652668638,-500.0,0.00022465,3]
[329761651,1718652668647,-12854.94,0.00022465,3]
[329761652,1718652668657,-500.0,0.00022465,3]
[329761653,1718652668666,-687.95,0.00022465,3]
[329761654,1718652668676,-1181.39,0.00022465,3]
[329761655,1718652668686,-500.0,0.00022465,3]
[329761656,1718652668695,-2666.56,0.00022465,3]
[329761657,1718652668704,-500.0,0.00022465,3]
[329761658,1718652668714,-17417.98,0.00022465,3]
[329761659,1718652668725,-500.0,0.00022465,3]
[329761660,1718652668922,-3029.95,0.00022465,3]
[329761661,1718652668939,-1812.25,0.00022465,3]
[329761662,1718652668949,-197.18234231,0.00022465,3]
[329761663,1718652668960,-500.0,0.00022465,3]
[329761664,1718652668970,-865.91,0.00022465,3]
[329761665,1718652668981,-905.04,0.00022465,3]
[329761666,1718652668994,-1323.78,0.00022465,3]
[329761667,1718652669004,-207.18209711,0.00022465,3]
[329761668,1718652669014,-2367.41,0.00022465,3]
[329761669,1718652669024,-6133.27,0.00022465,3]
[329761670,1718652669034,-500.0,0.00022465,3]
[329761671,1718652669044,-3633.83,0.00022465,3]
[329761672,1718652669053,-5271.46,0.00022465,3]
[329761673,1718652669063,-500.0,0.00022465,3]
[329761674,1718652669074,-2566.78,0.00022465,3]
[329761675,1718652669085,-2304.26,0.00022465,3]
[329761676,1718652669095,-4997.89,0.00022465,3]
[329761677,1718652669105,-500.0,0.00022465,3]
[329761678,1718652669115,-1331.12,0.00022465,3]
[329761679,1718652669125,-500.0,0.00022465,3]
[329761680,1718652669136,-698.87,0.00022465,3]
[329761681,1718652669152,-9421.9,0.00022465,3]
[329761682,1718652669162,-500.0,0.00022465,3]
[329761683,1718652669172,-633.98598723,0.00022465,3]
[329761684,1718652669183,-3911.56,0.00022465,3]
[329761685,1718652669194,-6695.58,0.00022465,3]
[329761686,1718652669204,-1343.54,0.00022465,3]
[329761687,1718652669213,-500.0,0.00022465,3]
[329761688,1718652669225,-278.370455,0.00022465,7]
[329761689,1718652669235,-278.370455,0.00022465,7]
[329761690,1718652669249,-12780.91,0.00022465,3]
[329761691,1718652669260,-500.0,0.00022465,3]
[329761692,1718652669271,-500.0,0.00022465,3]
[329761693,1718652669281,-500.0,0.00022465,3]
[329761694,1718652669292,-500.0,0.00022465,3]
[329761695,1718652669303,-4687.73,0.00022465,3]
[329761696,1718652669313,-278.370455,0.00022465,7]
[329761697,1718652669324,-1261.66,0.00022465,3]
[329761698,1718652669334,-278.370455,0.00022465,7]
[329761699,1718652669344,-500.0,0.00022465,3]
[329761700,1718652669354,-1388.21,0.00022465,3]
[329761701,1718652669364,-1157.07,0.00022465,3]
[329761702,1718652669374,-500.0,0.00022465,3]
[329761703,1718652669384,-500.0,0.00022465,3]
[329761704,1718652669393,-500.0,0.00022465,3]
[329761705,1718652669403,-3085.47,0.00022465,3]
[329761706,1718652669413,-934.49,0.00022465,3]
[329761707,1718652669423,-585.94745225,0.00022465,3]
[329761708,1718652669432,-8367.66,0.00022465,3]
[329761709,1718652669443,-634.83,0.00022465,3]
[329761710,1718652669452,-2752.73,0.00022465,3]
[329761711,1718652669462,-4794.57,0.00022465,3]
[329761712,1718652669472,-5115.85,0.00022465,3]
[329761713,1718652669482,-500.0,0.00022465,3]
[329761714,1718652669494,-500.0,0.00022465,3]
[329761715,1718652669504,-1086.64,0.00022465,3]
[329761716,1718652669514,-2566.56,0.00022465,3]
[329761717,1718652669523,-500.0,0.00022465,3]
[329761718,1718652669532,-1013.85,0.00022465,3]
[329761719,1718652669541,-2755.64,0.00022465,3]
[329761720,1718652669551,-1214.89,0.00022465,3]
[329761721,1718652669561,-4838.32,0.00022465,3]
[329761722,1718652669571,-500.0,0.00022465,3]
[329761723,1718652669581,-1475.96,0.00022465,3]
[329761724,1718652669590,-500.0,0.00022465,3]
[329761725,1718652669600,-1878.91,0.00022465,3]
[329761726,1718652669611,-5872.68,0.00022465,3]
[329761727,1718652669621,-500.0,0.00022465,3]
[329761728,1718652669631,-1232.69,0.00022465,3]
[329761729,1718652669642,-500.0,0.00022465,3]
[329761730,1718652669652,-500.0,0.00022465,3]
[329761731,1718652669662,-6930.55,0.00022465,3]
[329761732,1718652669672,-1467.78,0.00022465,3]
[329761733,1718652669682,-215.54924188,0.00022465,3]
[329761734,1718652669692,-7423.52,0.00022465,3]
[329761735,1718652669702,-500.0,0.00022465,3]
[329761736,1718652669712,-1861.86,0.00022465,3]
[329761737,1718652669722,-500.0,0.00022465,3]
[329761738,1718652669732,-283.66709185,0.00022465,3]
[329761739,1718652669744,-500.0,0.00022465,3]
[329761740,1718652669754,-1841.11,0.00022465,3]
[329761741,1718652669764,-3285.88,0.00022465,3]
[329761742,1718652669773,-15277.92,0.00022465,3]
[329761743,1718652669782,-500.0,0.00022465,3]
[329761744,1718652669792,-1481.39,0.00022465,3]
[329761745,1718652669802,-1316.87,0.00022465,3]
[329761746,1718652669813,-500.0,0.00022465,3]
[329761747,1718652669823,-1436.92,0.00022465,3]
[329761748,1718652669834,-561.21,0.00022465,3]
[329761749,1718652669844,-1533.9,0.00022465,3]
[329761750,1718652669855,-3920.2,0.00022465,3]
[329761751,1718652669865,-9823.4,0.00022465,3]
[329761752,1718652669875,-4239.08,0.00022465,3]
[329761753,1718652669886,-2167.64,0.00022465,3]
[329761754,1718652669897,-3015.6,0.00022465,3]
[329761755,1718652669907,-653.63,0.00022465,3]
[329761756,1718652669918,-500.0,0.00022465,3]
[329761757,1718652669928,-500.0,0.00022465,3]
[329761758,1718652669938,-500.0,0.00022465,3]
[329761759,1718652669948,-500.0,0.00022465,3]
[329761760,1718652669959,-500.0,0.00022465,3]
[329761761,1718652669969,-2443.9,0.00022465,3]
[329761762,1718652669979,-500.0,0.00022465,3]
[329761763,1718652669992,-1678.83,0.00022465,3]
[329761764,1718652670002,-500.0,0.00022465,3]
[329761765,1718652670012,-645.9,0.00022465,3]
[329761766,1718652670022,-6537.56,0.00022465,3]
[329761767,1718652670033,-2210.89,0.00022465,3]
[329761768,1718652670044,-1159.17,0.00022465,3]
[329761769,1718652670055,-500.0,0.00022465,3]
[329761770,1718652670065,-1347.13,0.00022465,3]
[329761771,1718652670075,-2107.85,0.00022465,3]
[329761772,1718652670085,-3726.66,0.00022465,3]
[329761773,1718652670095,-1426.27,0.00022465,3]
[329761774,1718652670105,-500.0,0.00022465,3]
[329761775,1718652670115,-5736.55,0.00022465,3]
[329761776,1718652670125,-500.0,0.00022465,3]
[329761777,1718652670135,-7006.36,0.000225,2]
[329761778,1718652670146,-150.0,0.00022522,2]
[329761779,1718652670158,-500.0,0.00022564,2]
[329761780,1718652670168,-500.0,0.00022564,2]
[329761781,1718652670178,-500.0,0.00022564,2]
[329761782,1718652670188,-500.0,0.00022564,2]
[329761783,1718652670198,-1601.91,0.00022564,3]
[329761784,1718652670208,-11590.68616328,0.00022564,2]
[329761785,1718652670218,-292.72465215,0.00022737,2]
[329761786,1718652670228,-192.18507384,0.00022737,2]
[329761787,1718652670243,-155.0,0.00022737,2]
[329761788,1718652670254,-1601.91,0.00022738,3]
[329761789,1718652670265,-1601.91,0.00022738,3]
[329761790,1718652670275,-1601.91,0.00022738,3]
[329761791,1718652670285,-1601.91,0.00022738,3]
[329761792,1718652670295,-1601.91624112,0.00022738,3]
[329761793,1718652670304,-300.0,0.00022738,2]
[329761794,1718652670314,-851.08,0.00022739,3]
[329761795,1718652670324,-500.0,0.00022739,3]
[329761796,1718652670334,-500.0,0.00022739,3]
[329761797,1718652670343,-500.0,0.00022739,3]
[329761798,1718652670354,-500.0,0.00022739,3]
[329761799,1718652670363,-500.0,0.00022739,3]
[329761800,1718652670374,-657.45,0.00022739,3]
[329761801,1718652670383,-500.0,0.00022739,3]
[329761802,1718652670393,-500.0,0.00022739,3]
[329761803,1718652670403,-500.0,0.00022739,3]
[329761804,1718652670412,-176.6663811,0.00022739,3]
[329761805,1718652670422,-500.0,0.00022739,3]
[329761806,1718652670432,-272.3437005,0.00022739,3]
[329761807,1718652670443,-500.0,0.00022739,3]
[329761808,1718652670453,-616.67,0.00022739,3]
[329761809,1718652670463,-500.0,0.00022739,3]
[329761810,1718652670473,-500.0,0.00022739,3]
[329761811,1718652670484,-500.0,0.00022739,3]
[329761812,1718652670497,-500.0,0.00022739,3]
[329761813,1718652670508,-500.0,0.00022739,3]
[329761814,1718652670518,-693.01,0.00022739,3]
[329761815,1718652670529,-996.39,0.00022739,3]
[329761816,1718652670539,-470.4533064,0.00022739,3]
[329761817,1718652670549,-500.0,0.00022739,3]
[329761818,1718652670559,-500.0,0.00022739,3]
[329761819,1718652670568,-582.18139085,0.00022739,3]
[329761820,1718652670578,-500.0,0.00022739,3]
[329761821,1718652670588,-534.16583774,0.00022739,3]
[329761822,1718652670598,-500.0,0.00022739,3]
[329761823,1718652670608,-500.0,0.00022739,3]
[329761824,1718652670618,-500.0,0.00022739,3]
[329761825,1718652670628,-500.0,0.00022739,3]
[329761826,1718652670638,-500.0,0.00022739,3]
[329761827,1718652670648,-500.0,0.00022739,3]
[329761828,1718652670657,-500.0,0.00022739,3]
[329761829,1718652670667,-500.0,0.00022739,3]
[329761830,1718652670677,-639.34,0.00022739,3]
[329761831,1718652670687,-500.0,0.00022739,3]
[329761832,1718652670696,-546.45804998,0.00022739,3]
[329761833,1718652670706,-500.0,0.00022739,3]
[329761834,1718652670716,-500.0,0.00022739,3]
[329761835,1718652670726,-500.0,0.00022739,3]
[329761836,1718652670736,-308.24356151,0.00022739,3]
[329761837,1718652670749,-500.0,0.00022739,3]
[329761838,1718652670759,-500.0,0.00022739,3]
[329761839,1718652670769,-500.0,0.00022739,3]
[329761840,1718652670778,-740.57,0.00022739,3]
[329761841,1718652670788,-500.0,0.00022739,3]
[329761842,1718652670797,-627.87,0.00022739,3]
[329761843,1718652670807,-539.71,0.00022739,3]
[329761844,1718652670817,-588.24,0.00022739,3]
[329761845,1718652670827,-500.0,0.00022739,3]
[329761846,1718652670837,-500.0,0.00022739,3]
[329761847,1718652670847,-500.0,0.00022739,3]
[329761848,1718652670857,-500.0,0.00022739,3]
[329761849,1718652670868,-277.88800121,0.00022739,3]
[329761850,1718652670878,-500.0,0.00022739,3]
[329761851,1718652670889,-1017.55,0.00022739,3]
[329761852,1718652670900,-500.0,0.00022739,3]
[329761853,1718652670910,-500.0,0.00022739,3]
[329761854,1718652670921,-500.0,0.00022739,3]
[329761855,1718652670931,-500.0,0.00022739,3]
[329761856,1718652670942,-572.59991975,0.00022739,3]
[329761857,1718652670953,-500.0,0.00022739,3]
[329761858,1718652670963,-500.0,0.00022739,3]
[329761859,1718652670973,-500.0,0.00022739,3]
[329761860,1718652670982,-577.48,0.00022739,3]
[329761861,1718652670995,-500.0,0.00022739,3]
[329761862,1718652671004,-500.0,0.00022739,3]
[329761863,1718652671014,-717.95,0.00022739,3]
[329761864,1718652671024,-500.0,0.00022739,3]
[329761865,1718652671033,-897.65,0.00022739,3]
[329761866,1718652671044,-500.0,0.00022739,3]
[329761867,1718652671053,-500.0,0.00022739,3]
[329761868,1718652671064,-500.0,0.00022739,3]
[329761869,1718652671074,-500.0,0.00022739,3]
[329761870,1718652671084,-500.0,0.00022739,3]
[329761871,1718652671093,-500.0,0.00022739,3]
[329761872,1718652671103,-500.0,0.00022739,3]
[329761873,1718652671113,-500.0,0.00022739,3]
[329761874,1718652671122,-500.0,0.00022739,3]
[329761875,1718652671132,-858.17,0.00022739,3]
[329761876,1718652671142,-500.0,0.00022739,3]
[329761877,1718652671156,-590.49,0.00022739,3]
[329761878,1718652671166,-500.0,0.00022739,3]
[329761879,1718652671175,-559.5,0.00022739,3]
[329761880,1718652671184,-500.0,0.00022739,3]
[329761881,1718652671195,-500.0,0.00022739,3]
[329761882,1718652671205,-500.0,0.00022739,3]
[329761883,1718652671215,-500.0,0.00022739,3]
[329761884,1718652671225,-500.0,0.00022739,3]
[329761885,1718652671234,-500.0,0.00022739,3]
[329761886,1718652671247,-500.0,0.00022739,3]
[329761887,1718652671257,-500.0,0.00022739,3]
[329761888,1718652671267,-500.0,0.00022739,3]
[329761889,1718652671276,-500.0,0.00022739,3]
[329761890,1718652671286,-500.0,0.00022739,3]
[329761891,1718652671296,-500.0,0.00022739,3]
[329761892,1718652671306,-500.0,0.00022739,3]
[329761893,1718652671315,-500.0,0.00022739,3]
[329761894,1718652671325,-500.0,0.00022739,3]
[329761895,1718652671334,-500.0,0.00022739,3]
[329761896,1718652671344,-579.53672325,0.00022739,3]
[329761897,1718652671353,-500.0,0.00022739,3]
[329761898,1718652671363,-500.0,0.00022739,3]
[329761899,1718652671372,-500.0,0.00022739,3]
[329761900,1718652671382,-1238.11,0.00022739,3]
[329761901,1718652671392,-677.81,0.00022739,3]
[329761902,1718652671402,-389.93135102,0.00022739,3]
[329761903,1718652671412,-608.44,0.00022739,3]
[329761904,1718652671422,-633.76,0.00022739,3]
[329761905,1718652671557,-500.0,0.00022739,3]
[329761906,1718652671569,-500.0,0.00022739,3]
[329761907,1718652671578,-500.0,0.00022739,3]
[329761908,1718652671587,-500.0,0.00022739,3]
[329761909,1718652671597,-500.0,0.00022739,3]
[329761910,1718652671607,-2403.0,0.00022739,3]
[329761911,1718652671616,-500.0,0.00022739,3]
[329761912,1718652671626,-551.82,0.00022739,3]
[329761913,1718652671635,-500.0,0.00022739,3]
[329761914,1718652671644,-500.0,0.00022739,3]
[329761915,1718652671653,-500.0,0.00022739,3]
[329761916,1718652671663,-500.0,0.00022739,3]
[329761917,1718652671672,-1744.55,0.00022739,3]
[329761918,1718652671681,-500.0,0.00022739,3]
[329761919,1718652671690,-500.0,0.00022739,3]
[329761920,1718652671700,-500.0,0.00022739,3]
[329761921,1718652671710,-500.0,0.00022739,3]
[329761922,1718652671720,-641.45840615,0.00022739,3]
[329761923,1718652671730,-661.66,0.00022739,3]
[329761924,1718652671740,-1411.97,0.00022739,3]
[329761925,1718652671750,-558.83,0.00022739,3]
[329761926,1718652671759,-1474.21,0.00022739,3]
[329761927,1718652671768,-500.0,0.00022739,3]
[329761928,1718652671776,-500.0,0.00022739,3]
[329761929,1718652671786,-500.0,0.00022739,3]
[329761930,1718652671795,-633.62,0.00022739,3]
[329761931,1718652671804,-1389.85,0.00022739,3]
[329761932,1718652671814,-500.0,0.00022739,3]
[329761933,1718652671824,-683.61,0.00022739,3]
[329761934,1718652671833,-500.0,0.00022739,3]
[329761935,1718652671842,-283.80929388,0.00022739,3]
[329761936,1718652671851,-500.0,0.00022739,3]
[329761937,1718652671860,-500.0,0.00022739,3]
[329761938,1718652671870,-500.0,0.00022739,3]
[329761939,1718652671880,-638.12615849,0.00022739,3]
[329761940,1718652671889,-500.0,0.00022739,3]
[329761941,1718652671898,-415.32862715,0.00022739,3]
[329761942,1718652671907,-864.43,0.00022739,3]
[329761943,1718652671917,-500.0,0.00022739,3]
[329761944,1718652671926,-500.0,0.00022739,3]
[329761945,1718652671936,-500.0,0.00022739,3]
[329761946,1718652671945,-1309.85,0.00022739,3]
[329761947,1718652671955,-572.94,0.00022739,3]
[329761948,1718652671964,-2192.86,0.00022739,3]
[329761949,1718652671973,-1194.77,0.00022739,3]
[329761950,1718652671983,-507.97,0.00022739,3]
[329761951,1718652671995,-500.0,0.00022739,3]
[329761952,1718652672004,-577.94223415,0.00022739,3]
[329761953,1718652672014,-500.0,0.00022739,3]
[329761954,1718652672023,-500.0,0.00022739,3]
[329761955,1718652672033,-500.0,0.00022739,3]
[329761956,1718652672042,-898.52,0.00022739,3]
[329761957,1718652672052,-500.0,0.00022739,3]
[329761958,1718652672061,-584.16819028,0.00022739,3]
[329761959,1718652672070,-500.0,0.00022739,3]
[329761960,1718652672079,-748.88,0.00022739,3]
[329761961,1718652672088,-500.0,0.00022739,3]
[329761962,1718652672097,-500.0,0.00022739,3]
[329761963,1718652672106,-525.93,0.00022739,3]
[329761964,1718652672115,-600.35,0.00022739,3]
[329761965,1718652672125,-500.0,0.00022739,3]
[329761966,1718652672134,-2318.43,0.00022739,3]
[329761967,1718652672145,-500.0,0.00022739,3]
[329761968,1718652672156,-151.0,0.00022739,7]
[329761969,1718652672165,-514.34,0.00022739,2]
[329761970,1718652672174,-151.0,0.00022739,7]
[329761971,1718652672183,-500.0,0.00022739,3]
[329761972,1718652672193,-919.48,0.00022739,3]
[329761973,1718652672202,-500.0,0.00022739,3]
[329761974,1718652672211,-151.0,0.00022739,7]
[329761975,1718652672221,-500.0,0.00022739,3]
[329761976,1718652672231,-962.69,0.00022739,3]
[329761977,1718652672244,-500.0,0.00022739,3]
[329761978,1718652672254,-744.09,0.00022739,3]
[329761979,1718652672263,-500.0,0.00022739,3]
[329761980,1718652672272,-500.0,0.00022739,3]
[329761981,1718652672282,-500.0,0.00022739,3]
[329761982,1718652672291,-500.0,0.00022739,3]
[329761983,1718652672300,-2588.71,0.00022739,3]
[329761984,1718652672310,-500.0,0.00022739,3]
[329761985,1718652672319,-784.94,0.00022739,3]
[329761986,1718652672328,-1198.1,0.00022739,3]
[329761987,1718652672337,-500.0,0.00022739,3]
[329761988,1718652672347,-500.0,0.00022739,3]
[329761989,1718652672356,-954.06,0.00022739,3]
[329761990,1718652672365,-500.0,0.00022739,3]
[329761991,1718652672374,-500.0,0.00022739,3]
[329761992,1718652672384,-2057.92,0.00022739,3]
[329761993,1718652672393,-894.51,0.00022739,3]
[329761994,1718652672402,-500.0,0.00022739,3]
[329761995,1718652672412,-500.0,0.00022739,3]
[329761996,1718652672421,-500.0,0.00022739,3]
[329761997,1718652672430,-736.46,0.00022739,3]
[329761998,1718652672439,-1175.65,0.00022739,3]
[329761999,1718652672448,-500.0,0.00022739,3]
[329762000,1718652672457,-500.0,0.00022739,3]
[329762001,1718652672467,-828.28,0.00022739,3]
[329762002,1718652672476,-500.0,0.00022739,3]
[329762003,1718652672485,-500.0,0.00022739,3]
[329762004,1718652672497,-2076.67,0.00022739,3]
[329762005,1718652672506,-592.46,0.00022739,3]
[329762006,1718652672515,-500.0,0.00022739,3]
[329762007,1718652672524,-626.37,0.00022739,3]
[329762008,1718652672534,-500.0,0.00022739,3]
[329762009,1718652672543,-1901.91,0.00022739,3]
[329762010,1718652672553,-881.58,0.00022739,3]
[329762011,1718652672562,-500.0,0.00022739,3]
[329762012,1718652672572,-1213.76,0.00022739,3]
[329762013,1718652672581,-650.67,0.00022739,3]
[329762014,1718652672590,-1299.99,0.00022739,3]
[329762015,1718652672600,-500.0,0.00022739,3]
[329762016,1718652672609,-500.0,0.00022739,3]
[329762017,1718652672618,-1256.19,0.00022739,3]
[329762018,1718652672628,-500.0,0.00022739,3]
[329762019,1718652672637,-500.0,0.00022739,3]
[329762020,1718652672647,-1910.45,0.00022739,3]
[329762021,1718652672656,-500.0,0.00022739,3]
[329762022,1718652672666,-853.59,0.00022739,3]
[329762023,1718652672680,-284.88,0.00022739,7]
[329762024,1718652672690,-656.88,0.00022739,3]
[329762025,1718652672700,-500.0,0.00022739,3]
[329762026,1718652672709,-642.56,0.00022739,3]
[329762027,1718652672719,-500.0,0.00022739,3]
[329762028,1718652672728,-1632.77,0.00022739,3]
[329762029,1718652672737,-1186.25,0.00022739,3]
[329762030,1718652672748,-500.0,0.00022739,3]
[329762031,1718652672758,-500.0,0.00022739,3]
[329762032,1718652672767,-843.7,0.00022739,3]
[329762033,1718652672777,-1194.69,0.00022739,3]
[329762034,1718652672786,-1037.34,0.00022739,3]
[329762035,1718652672795,-500.0,0.00022739,3]
[329762036,1718652672804,-500.0,0.00022739,3]
[329762037,1718652672813,-500.0,0.00022739,3]
[329762038,1718652672823,-500.0,0.00022739,3]
[329762039,1718652672832,-972.75,0.00022739,3]
[329762040,1718652672841,-500.0,0.00022739,3]
[329762041,1718652672851,-508.37,0.00022739,3]
[329762042,1718652672860,-500.0,0.00022739,3]
[329762043,1718652672869,-609.27,0.00022739,3]
[329762044,1718652672879,-500.0,0.00022739,3]
[329762045,1718652672888,-1410.26,0.00022739,3]
[329762046,1718652672897,-622.09,0.00022739,3]
[329762047,1718652672907,-478.56381697,0.00022739,3]
[329762048,1718652672917,-1623.62,0.00022739,3]
[329762049,1718652672926,-554.08191906,0.00022739,3]
[329762050,1718652672935,-500.0,0.00022739,3]
[329762051,1718652672944,-761.81,0.00022739,3]
[329762052,1718652672953,-500.0,0.00022739,3]
[329762053,1718652672963,-997.55,0.00022739,3]
[329762054,1718652672972,-151.0,0.00022739,7]
[329762055,1718652672982,-151.0,0.00022739,7]
[329762056,1718652672993,-1092.46,0.00022739,3]
[329762057,1718652673003,-500.0,0.00022739,3]
[329762058,1718652673012,-500.0,0.00022739,3]
[329762059,1718652673022,-500.0,0.00022739,3]
[329762060,1718652673031,-389.98991417,0.00022739,3]
[329762061,1718652673041,-500.0,0.00022739,3]
[329762062,1718652673050,-500.0,0.00022739,3]
[329762063,1718652673060,-500.0,0.00022739,3]
[329762064,1718652673070,-500.0,0.00022739,3]
[329762065,1718652673079,-500.0,0.00022739,3]
[329762066,1718652673088,-500.0,0.00022739,3]
[329762067,1718652673098,-151.0,0.00022739,7]
[329762068,1718652673107,-500.0,0.00022739,3]
[329762069,1718652673117,-182.776301,0.00022739,7]
[329762070,1718652673126,-560.57,0.00022739,3]
[329762071,1718652673136,-500.0,0.00022739,3]
[329762072,1718652673146,-1269.23,0.00022739,3]
[329762073,1718652673159,-520.6,0.00022739,3]
[329762074,1718652673169,-912.1,0.00022739,3]
[329762075,1718652673178,-500.0,0.00022739,3]
[329762076,1718652673189,-500.0,0.00022739,3]
[329762077,1718652673199,-221.42732591,0.00022739,3]
[329762078,1718652673208,-714.96,0.00022739,3]
[329762079,1718652673218,-1057.65,0.00022739,3]
[329762080,1718652673227,-500.0,0.00022739,3]
[329762081,1718652673244,-1062.38,0.00022739,3]
[329762082,1718652673254,-500.0,0.00022739,3]
[329762083,1718652673266,-605.66,0.00022739,3]
[329762084,1718652673275,-1224.71,0.00022739,3]
[329762085,1718652673284,-601.76,0.00022739,3]
[329762086,1718652673295,-2378.28,0.00022739,3]
[329762087,1718652673304,-500.0,0.00022739,3]
[329762088,1718652673314,-619.44,0.00022739,3]
[329762089,1718652673324,-500.0,0.00022739,3]
[329762090,1718652673334,-500.0,0.00022739,3]
[329762091,1718652673344,-2636.87,0.00022739,3]
[329762092,1718652673354,-522.16,0.00022739,3]
[329762093,1718652673365,-602.02,0.00022739,3]
[329762094,1718652673375,-775.14,0.00022739,3]
[329762095,1718652673385,-909.14,0.00022739,3]
[329762096,1718652673395,-500.0,0.00022739,3]
[329762097,1718652673405,-500.0,0.00022739,3]
[329762098,1718652673414,-500.0,0.00022739,3]
[329762099,1718652673424,-1026.03,0.00022739,3]
[329762100,1718652673433,-500.0,0.00022739,3]